bitfinex-derivatives/quotes_SOLF0:USTF0_20250518
["timestamp","ask_amount","ask_price","bid_price","bid_amount"]
[1747531156706,5.9881,166.95,166.92,5.989]
[1747531157399,59.2,166.96,166.89,3.8061]
[1747531157599,59.2,166.97,166.89,3.8061]
[1747531157600,59.2,166.99,166.9,5.28342596]
[1747531158102,59.2,166.99,166.91,4.8902854]
[1747531158310,5.9869,166.98,166.92,59.2]
[1747531159009,5.9869,166.98,166.95,5.9879]
[1747531159212,5.9873,166.97,166.92,59.2]
[1747531159705,5.9873,166.97,166.94,5.9881]
[1747531159908,5.987,166.98,166.92,59.2]
[1747531160105,59.2,167.0,166.92,59.2]
[1747531160505,118.4,167.01,166.92,59.2]
[1747531161611,5.9863,167.0,166.93,4.89152043]
[1747531161907,118.4,167.01,166.93,4.89152043]
[1747531162107,59.2,167.01,166.93,4.89152043]
[1747531162310,5.9864,167.0,166.93,4.89152043]
[1747531163007,59.2,167.01,166.94,1.9623]
[1747531163311,59.2,167.01,166.95,3.8399]
[1747531163707,65.1857,167.02,166.95,3.8399]
[1747531164111,65.1857,167.02,166.98,5.9865]
[1747531165102,65.1857,167.02,166.99,5.9864]
[1747531166404,5.9858,167.01,166.92,59.2]
[1747531166604,59.2,167.02,166.93,1.9228]
[1747531167311,5.9862,167.0,166.96,5.9873]
[1747531167713,59.2,167.02,166.93,1.9228]
[1747531168113,5.9868,166.99,166.95,5.9878]
[1747531168614,5.9868,166.99,166.96,5.9875]
[1747531168816,65.1862,167.0,166.96,5.9875]
[1747531171018,59.2,167.0,166.92,59.2]
[1747531171417,65.1862,167.0,166.96,5.9873]
[1747531173019,5.9865,166.99,166.96,5.9873]
[1747531174419,5.9865,166.99,166.95,5.9878]
[1747531177523,5.9865,166.99,166.96,5.9875]
[1747531179919,65.1862,167.0,166.97,5.9871]
[1747531180521,59.2,167.0,166.97,5.9871]
[1747531180722,59.2,167.0,166.93,4.89875769]
[1747531181416,59.2,167.0,166.92,59.2]
[1747531182022,5.9865,166.99,166.96,5.9873]
[1747531183421,65.1862,167.0,166.97,5.9872]
[1747531185924,59.2,167.0,166.93,4.89673834]
[1747531186331,59.2,167.01,166.93,4.89673834]
[1747531186632,118.38,167.03,166.94,64.09673834]
[1747531186922,59.2,167.03,166.94,64.09673834]
[1747531187128,70.36513926,167.05,167.03,5.985]
[1747531187324,11.16513926,167.05,167.03,5.985]
[1747531188633,124.3642,167.06,167.03,5.985]
[1747531188927,59.2,167.06,167.04,5.9844]
[1747531190032,65.184,167.06,167.03,5.9849]
[1747531190730,5.984,167.06,167.03,5.9849]
[1747531191636,65.1637,167.07,167.03,5.9849]
[1747531192734,5.9837,167.07,167.03,5.9849]
[1747531193036,65.1637,167.07,167.03,5.9849]
[1747531194338,5.984,167.06,167.03,5.9849]
[1747531195635,5.984,167.06,167.02,5.9853]
[1747531200241,5.984,167.06,167.03,5.985]
[1747531200538,5.984,167.06,166.99,5.929]
[1747531200834,5.9844,167.05,166.99,5.929]
[1747531201041,59.16,167.07,166.99,5.929]
[1747531201231,59.16,167.07,166.99,3.961]
[1747531202040,5.9845,167.05,167.01,5.9857]
[1747531202346,59.16,167.07,167.01,5.9857]
[1747531202638,59.16,167.07,166.93,522.77878137]
[1747531202841,59.16,167.07,166.95,61.0256]
[1747531203144,5.9857,167.02,166.98,5.9867]
[1747531203342,59.16,167.02,166.98,5.9867]
[1747531204548,5.9858,167.01,166.98,5.9867]
[1747531204848,59.16,167.02,166.98,5.9867]
[1747531205342,65.1456,167.02,166.98,5.9867]
[1747531205842,65.1456,167.02,166.99,5.9863]
[1747531206144,59.16,167.02,166.95,61.0256]
[1747531206440,59.16,167.02,167.0,5.986]
[1747531206639,59.16,167.04,167.0,5.986]
[1747531207642,5.9852,167.03,167.0,5.986]
[1747531207838,59.16,167.04,167.01,5.9857]
[1747531208046,59.16,167.05,166.96,10.17003568]
[1747531208542,65.1444,167.05,166.96,10.17003568]
[1747531209035,5.9844,167.05,166.96,10.17003568]
[1747531209744,5.9844,167.05,166.97,4.89125431]
[1747531210237,5.9847,167.04,166.97,4.89125431]
[1747531210845,5.9847,167.04,167.0,5.9858]
[1747531211146,59.16,167.06,166.96,5.27878137]
[1747531211346,59.16,167.06,166.99,5.9862]
[1747531212738,5.9852,167.03,166.99,5.9862]
[1747531214149,5.9855,167.02,166.99,5.9862]
[1747531214649,5.9852,167.03,166.99,5.9862]
[1747531215345,5.9854,167.02,166.99,5.9862]
[1747531217050,5.9854,167.02,166.98,5.9868]
[1747531217251,59.16,167.06,166.96,4.89070633]
[1747531217452,59.16,167.05,166.95,61.0256]
[1747531217755,59.16,167.05,166.98,5.9867]
[1747531217954,59.16,167.05,166.95,61.0256]
[1747531219454,59.16,167.05,166.96,5.9875]
[1747531220357,5.9865,166.99,166.96,5.9875]
[1747531224254,5.987,166.98,166.95,7.8534]
[1747531224443,59.16,167.0,166.95,7.8534]
[1747531225554,5.9866,166.99,166.95,7.8534]
[1747531226654,5.9866,166.99,166.96,5.9875]
[1747531227454,65.1462,167.0,166.96,5.9875]
[1747531228556,59.16,167.0,166.95,1.8656]
[1747531228759,59.16,167.0,166.95,5.24681812]
[1747531229156,65.1455,167.02,166.95,5.24681812]
[1747531229356,59.16,167.02,166.97,3.38121812]
[1747531229656,59.16,167.03,166.97,3.38121812]
[1747531230258,65.1451,167.03,167.0,5.9858]
[1747531230459,59.16,167.04,166.97,3.38121812]
[1747531230759,124.3044,167.05,166.99,3.38121812]
[1747531230958,5.9844,167.05,166.99,3.38121812]
[1747531231154,76.30913926,167.06,166.99,3.38121812]
[1747531231351,76.30913926,167.06,166.96,64.43901842]
[1747531231559,17.14913926,167.06,166.96,64.43901842]
[1747531231754,76.30913926,167.06,166.96,64.43901842]
[1747531232262,65.144,167.06,166.97,4.89876246]
[1747531233359,5.984,167.06,167.03,5.9848]
[1747531236567,65.1437,167.07,167.03,5.9848]
[1747531236859,59.16,167.07,167.0,59.14]
[1747531237163,118.32,167.08,167.0,62.9972]
[1747531237362,118.32,167.08,167.05,5.984]
[1747531238170,124.3035,167.08,167.05,5.984]
[1747531239072,124.3035,167.08,167.04,5.9845]
[1747531239766,118.32,167.08,167.05,5.9843]
[1747531240169,118.32,167.08,167.01,1.998]
[1747531240366,124.3035,167.08,167.04,5.9846]
[1747531240768,118.32,167.08,167.01,1.998]
[1747531240959,118.32,167.08,167.05,5.9841]
[1747531241564,124.3033,167.08,167.01,1.998]
[1747531241756,124.2833,167.08,167.04,5.9845]
[1747531242871,124.2833,167.08,167.05,5.9843]
[1747531243167,118.3,167.08,167.01,1.998]
[1747531243372,118.3,167.08,167.05,5.984]
[1747531243669,124.2832,167.08,167.05,5.984]
[1747531246670,65.1432,167.08,167.05,5.984]
[1747531247768,124.2832,167.08,167.05,5.984]
[1747531251077,118.3,167.08,167.06,5.9839]
[1747531251266,59.14,167.08,167.06,5.9839]
[1747531251467,5.983,167.09,167.06,5.9839]
[1747531254266,59.14024164,167.1,167.06,5.9839]
[1747531254267,65.12294164,167.1,167.06,5.9839]
[1747531254468,59.14024164,167.1,167.06,5.9839]
[1747531254770,5.9831,167.09,167.06,5.9839]
[1747531255665,5.9831,167.09,167.05,5.9842]
[1747531257280,5.9831,167.09,167.06,5.9839]
[1747531258576,5.9831,167.09,167.05,5.9842]
[1747531260265,5.9834,167.08,167.04,5.9845]
[1747531261373,5.9834,167.08,167.05,5.9843]
[1747531261780,5.983,167.09,167.05,5.9843]
[1747531262378,0.02024164,167.1,167.05,3.37729934]
[1747531263079,6.00284164,167.1,167.07,5.9833]
[1747531265281,0.02024164,167.1,167.07,5.9833]
[1747531265883,0.02024164,167.1,167.09,5.9829]
[1747531269489,0.02024164,167.1,167.09,9.36019934]
[1747531269675,0.0422415,167.13,167.11,5.9818]
[1747531269881,0.0422415,167.13,167.09,3.37729934]
[1747531270084,0.0422415,167.13,167.09,5.42039934]
[1747531270288,0.0422415,167.13,167.12,5.9818]
[1747531274387,0.05058926,167.17,167.11,3.37729934]
[1747531274588,0.05058926,167.17,167.14,3.37729934]
[1747531274975,0.05058926,167.17,167.16,5.9804]
[1747531275187,0.05058926,167.17,167.14,3.37729934]
[1747531275388,0.05058926,167.17,167.16,5.9804]
[1747531276181,0.05058926,167.17,167.15,5.9806]
[1747531277481,0.05058926,167.17,167.14,5.981]
[1747531277679,0.05058926,167.17,167.12,59.08]
[1747531278590,0.05058926,167.17,167.15,5.9806]
[1747531279187,0.05058926,167.17,167.12,59.08]
[1747531279383,0.05058926,167.17,167.14,5.9809]
[1747531279988,6.03088926,167.17,167.13,5.9812]
[1747531280283,6.03088926,167.17,167.12,59.08]
[1747531280491,0.05058926,167.17,167.1,1.9063]
[1747531281186,5.9805,167.16,167.12,5.9817]
[1747531282391,0.05058926,167.17,167.1,1.9063]
[1747531282895,5.9806,167.16,167.12,5.9816]
[1747531284890,5.9808,167.15,167.12,5.9816]
[1747531287286,59.08,167.15,167.1,1.9063]
[1747531287486,59.08,167.15,167.04,1.8919]
[1747531288392,5.9817,167.13,167.09,5.9828]
[1747531288590,11.16513926,167.14,167.04,1.8919]
[1747531288790,5.9828,167.1,167.06,5.9838]
[1747531289293,5.9828,167.1,167.04,1.8919]
[1747531290101,5.983,167.09,167.04,1.8919]
[1747531290289,5.983,167.09,167.05,5.9842]
[1747531291300,59.08,167.11,167.04,1.8919]
[1747531291995,5.9825,167.1,167.07,5.9836]
[1747531293599,5.9825,167.1,167.06,5.9839]
[1747531293806,5.9829,167.09,167.06,5.9839]
[1747531294098,59.08,167.11,167.06,5.9839]
[1747531294301,5.9833,167.08,167.03,59.08]
[1747531294801,5.9833,167.08,167.04,5.9844]
[1747531296095,59.08,167.07,167.02,7.9698]
[1747531296594,5.9842,167.06,167.03,5.985]
[1747531296795,59.08,167.07,167.01,2.0182]
[1747531297703,59.08,167.07,166.99,1.9089]
[1747531299202,59.08,167.09,167.01,5.26993314]
[1747531299394,59.08,167.1,167.02,68.02148271]
[1747531300602,65.0626,167.1,167.07,5.9834]
[1747531301398,5.9829,167.09,167.06,5.9839]
[1747531302302,59.08,167.1,167.02,63.1351]
[1747531302808,59.08,167.1,167.05,5.9842]
[1747531303106,59.08,167.1,167.02,63.1351]
[1747531303710,65.0627,167.1,167.06,5.9838]
[1747531305106,59.08,167.1,167.06,5.9838]
[1747531305308,59.08,167.11,167.02,63.1351]
[1747531305511,118.16,167.11,167.02,63.1351]
[1747531305699,59.08,167.11,167.02,63.1351]
[1747531305899,59.08,167.11,167.08,5.983]
[1747531306409,5.9818,167.12,167.08,5.983]
[1747531306611,65.0618,167.12,167.08,5.983]
[1747531306811,59.08,167.12,167.06,59.08]
[1747531307109,59.08,167.13,167.06,59.08]
[1747531307809,5.9821,167.12,167.08,5.983]
[1747531308013,59.08,167.13,167.06,59.08]
[1747531308203,59.08,167.13,167.05,1.8794]
[1747531309011,5.9829,167.09,167.06,5.9838]
[1747531309812,5.9827,167.1,167.06,5.9838]
[1747531314512,5.9827,167.1,167.07,5.9836]
[1747531315816,5.9827,167.1,167.06,5.9839]
[1747531317116,5.983,167.09,167.05,7.8636]
[1747531317312,65.063,167.09,167.05,7.8636]
[1747531317514,65.063,167.09,167.05,1.8794]
[1747531318613,65.063,167.09,167.06,5.9839]
[1747531319006,59.08,167.09,167.06,5.9839]
[1747531320219,5.9832,167.08,167.05,7.8635]
[1747531320412,59.08,167.09,167.05,7.8635]
[1747531320718,59.08,167.09,167.05,1.8794]
[1747531321120,59.08,167.09,167.06,5.9838]
[1747531322521,59.08,167.09,167.07,5.9835]
[1747531323221,59.08,167.11,167.08,5.9832]
[1747531323422,118.16,167.11,167.08,5.9832]
[1747531325028,70.22513926,167.15,167.07,59.06]
[1747531325216,70.22513926,167.15,167.08,1.9089]
[1747531325217,59.08,167.14,167.08,1.9089]
[1747531325926,129.30513926,167.15,167.08,1.9089]
[1747531327018,59.08,167.14,167.08,1.9089]
[1747531328625,59.08,167.14,167.09,5.9828]
[1747531328814,59.08,167.14,167.08,1.9089]
[1747531330021,65.0612,167.14,167.08,1.9089]
[1747531330425,59.08,167.14,167.11,5.9819]
[1747531331219,65.0612,167.14,167.11,5.9819]
[1747531332129,118.12,167.15,167.08,1.9089]
[1747531332439,11.16513926,167.16,167.09,5.26993314]
[1747531333633,11.16513926,167.16,167.15,5.9807]
[1747531334625,0.05058926,167.17,167.16,5.9804]
[1747531348624,0.05058926,167.17,167.13,1.9503]
[1747531349338,6.03068926,167.17,167.12,59.06]
[1747531349833,0.05058926,167.17,167.14,5.981]
[1747531350032,0.05058926,167.17,167.12,59.06]
[1747531350940,0.05058926,167.17,167.14,5.9808]
[1747531351239,59.25058926,167.17,167.14,5.9808]
[1747531352039,65.23068926,167.17,167.14,5.9808]
[1747531352238,59.25058926,167.17,167.15,5.9807]
[1747531353737,59.25058926,167.17,167.16,5.9804]
[1747531353943,0.05058926,167.17,167.16,5.9804]
[1747531362348,0.07007033,167.2,167.19,5.9793]
[1747531364249,0.07007033,167.2,167.18,5.9796]
[1747531366754,0.07007033,167.2,167.17,5.9799]
[1747531367960,0.07007033,167.2,167.16,5.9802]
[1747531368149,0.07007033,167.2,167.13,59.16]
[1747531368656,0.07007033,167.2,167.19,5.9793]
[1747531391779,0.07007033,167.2,167.16,3.9382]
[1747531392488,0.07007033,167.2,167.18,5.9794]
[1747531392687,0.07007033,167.2,167.16,3.9382]
[1747531392891,0.07007033,167.2,167.19,5.9793]
[1747531396887,0.07007033,167.2,167.18,5.9796]
[1747531397093,59.21007033,167.2,167.16,3.9382]
[1747531398786,65.18927033,167.2,167.17,5.9799]
[1747531403787,59.21007033,167.2,167.17,5.9799]
[1747531404082,0.07007033,167.2,167.16,3.9382]
[1747531405102,0.07007033,167.2,167.19,5.9793]
[1747531408697,0.07007033,167.2,167.18,5.9795]
[1747531410396,6.04907033,167.2,167.16,3.9382]
[1747531410596,6.04907033,167.2,167.14,61.0771]
[1747531410799,0.07007033,167.2,167.14,61.0771]
[1747531412299,0.07007033,167.2,167.17,5.9798]
[1747531416506,0.07007033,167.2,167.18,5.9796]
[1747531418301,0.07007033,167.2,167.19,5.9793]
[1747531424912,0.07007033,167.2,167.18,5.9795]
[1747531425711,0.07007033,167.2,167.19,5.9793]
[1747531438933,0.09091565,167.23,167.22,5.9782]
[1747531442040,0.09091565,167.23,167.2,5.9789]
[1747531442643,0.09091565,167.23,167.21,5.9786]
[1747531443137,0.09091565,167.23,167.2,5.9788]
[1747531443344,0.09091565,167.23,167.18,5.32402199]
[1747531443641,0.09091565,167.23,167.18,1.9524]
[1747531444145,3.37162199,167.21,167.14,59.18]
[1747531444942,9.35032199,167.21,167.17,5.9797]
[1747531445247,5.9787,167.21,167.14,59.18]
[1747531446546,5.9787,167.21,167.18,5.9796]
[1747531446743,65.0383,167.22,167.14,59.18]
[1747531446947,59.06,167.22,167.14,59.18]
[1747531447345,65.0385,167.22,167.14,59.18]
[1747531447850,5.9786,167.21,167.18,5.9793]
[1747531448447,65.0384,167.22,167.18,5.9793]
[1747531449140,65.0384,167.22,167.19,5.9792]
[1747531453753,5.9784,167.22,167.19,5.9792]
[1747531454050,65.0184,167.22,167.19,5.9792]
[1747531454253,59.04,167.22,167.19,5.9792]
[1747531454852,65.0183,167.22,167.19,5.9792]
[1747531455451,65.0183,167.22,167.18,5.9795]
[1747531456243,59.04,167.22,167.17,5.9799]
[1747531456551,59.04,167.22,167.14,59.18]
[1747531456752,5.9787,167.21,167.17,5.9798]
[1747531459052,59.04,167.22,167.16,5.9804]
[1747531459257,59.04,167.22,167.14,59.18]
[1747531459551,59.04,167.22,167.12,3.8869]
[1747531460450,5.9793,167.19,167.15,5.9806]
[1747531462653,5.9797,167.18,167.15,5.9806]
[1747531462955,65.0397,167.18,167.15,5.9806]
[1747531465952,59.06,167.18,167.16,5.9803]
[1747531466160,59.06,167.18,167.13,4.89558214]
[1747531466357,59.06,167.18,167.14,3.37340028]
[1747531466557,59.06,167.18,167.17,5.98]
[1747531466953,59.04,167.2,167.17,5.98]
[1747531467152,118.1,167.2,167.17,5.98]
[1747531467660,124.079,167.2,167.17,5.98]
[1747531468859,118.1,167.2,167.17,5.98]
[1747531470861,124.079,167.2,167.17,5.98]
[1747531474263,59.04,167.2,167.14,4.8924188]
[1747531474468,59.13091565,167.23,167.14,4.8924188]
[1747531474665,59.06,167.22,167.14,4.8924188]
[1747531474865,65.0384,167.22,167.18,5.9794]
[1747531477165,59.06,167.22,167.17,5.9799]
[1747531477371,59.06,167.22,167.15,4.8924188]
[1747531477670,59.06,167.22,167.12,9.44220988]
[1747531478573,5.9792,167.2,167.16,5.9803]
[1747531479674,5.9792,167.2,167.12,9.44220988]
[1747531480669,5.9792,167.2,167.16,5.9802]
[1747531483470,5.9793,167.19,167.16,5.9802]
[1747531485674,5.9791,167.2,167.16,5.9802]
[1747531488474,59.06,167.22,167.15,5.9807]
[1747531488668,59.06,167.22,167.12,3.8869]
[1747531489170,5.9803,167.17,167.13,5.9813]
[1747531489478,65.0203,167.17,167.13,5.9813]
[1747531494481,65.0203,167.17,167.14,5.981]
[1747531495486,65.0203,167.17,167.13,5.9813]
[1747531500384,5.981,167.15,167.11,5.9821]
[1747531500582,3.37398242,167.16,167.11,5.9821]
[1747531500880,5.9813,167.14,167.1,5.9823]
[1747531502181,5.9816,167.13,167.09,5.9828]
[1747531502387,59.06,167.13,167.09,5.9828]
[1747531503586,5.9821,167.12,167.08,5.9831]
[1747531503781,3.37398242,167.12,167.04,64.61530988]
[1747531505995,5.9823,167.11,167.07,5.9834]
[1747531514997,5.9825,167.1,167.06,5.9839]
[1747531515197,59.06,167.09,167.06,5.9839]
[1747531515503,59.06,167.09,167.03,3.37398242]
[1747531515901,65.043,167.09,167.05,5.9842]
[1747531516500,5.9833,167.08,167.05,5.9842]
[1747531519003,59.06,167.09,167.04,5.9845]
[1747531519004,5.9836,167.07,167.04,5.9845]
[1747531522204,5.9833,167.08,167.04,5.9845]
[1747531522394,5.9833,167.08,167.05,5.9843]
[1747531522590,3.37398242,167.12,167.03,3.37398242]
[1747531522796,118.14,167.11,167.05,3.37398242]
[1747531523101,124.1224,167.11,167.05,3.37398242]
[1747531523602,124.1224,167.11,167.08,5.9832]
[1747531525206,65.0424,167.11,167.08,5.9832]
[1747531525500,65.0626,167.1,167.07,5.9835]
[1747531526804,5.9829,167.09,167.06,5.9838]
[1747531529705,65.0627,167.1,167.06,5.9838]
[1747531531809,5.9829,167.09,167.06,5.9838]
[1747531533013,5.9829,167.09,167.05,5.9843]
[1747531533309,5.9833,167.08,167.02,3.37398242]
[1747531533610,5.9833,167.08,167.04,5.9844]
[1747531542712,5.9833,167.08,167.05,5.9841]
[1747531542911,5.983,167.09,167.02,3.37398242]
[1747531543100,62.45398242,167.1,167.02,3.37398242]
[1747531543712,5.9833,167.08,167.05,5.9841]
[1747531553319,62.45398242,167.1,167.01,64.7381]
[1747531553518,5.9837,167.07,167.01,68.11208242]
[1747531553817,62.45398242,167.1,167.01,68.11208242]
[1747531554017,5.9834,167.08,167.05,5.9842]
[1747531557826,3.37398242,167.1,167.03,3.37398242]
[1747531558027,59.06,167.09,167.03,3.37398242]
[1747531558326,11.16513926,167.13,167.12,5.9818]
[1747531558523,59.06,167.2,167.12,3.37379718]
[1747531558721,59.06,167.2,167.14,3.37379718]
[1747531558924,59.06,167.2,167.16,5.9804]
[1747531559524,59.06,167.2,167.17,5.9799]
[1747531560626,59.06,167.2,167.16,5.9801]
[1747531560833,59.06,167.2,167.1,59.06]
[1747531561126,59.06,167.2,167.09,5.55530988]
[1747531561322,5.9803,167.17,167.09,5.55530988]
[1747531561518,59.06,167.16,167.09,5.55530988]
[1747531562728,59.06,167.16,167.13,5.9812]
[1747531563729,65.0405,167.16,167.13,5.9812]
[1747531564633,65.0405,167.16,167.12,5.9816]
[1747531565132,59.06,167.16,167.09,2.0168]
[1747531565433,59.06,167.16,167.13,5.9814]
[1747531566936,65.0404,167.16,167.13,5.9814]
[1747531567334,59.06,167.16,167.13,5.9814]
[1747531568032,59.06,167.16,167.12,5.9818]
[1747531568235,65.0406,167.16,167.12,5.9818]
[1747531570438,59.06,167.16,167.12,5.9818]
[1747531570937,65.0405,167.16,167.12,5.9818]
[1747531575646,5.9808,167.15,167.12,5.9818]
[1747531576242,65.0405,167.16,167.12,5.9818]
[1747531577351,5.9808,167.15,167.12,5.9818]
[1747531577556,59.06,167.16,167.12,5.9818]
[1747531577951,65.0406,167.16,167.12,5.9818]
[1747531579654,5.9807,167.15,167.12,5.9818]
[1747531580749,59.06,167.16,167.09,5.9825]
[1747531581055,5.26877719,167.15,167.04,2.0479]
[1747531581257,5.26877719,167.12,167.04,2.0479]
[1747531581457,118.86,167.11,167.04,2.0479]
[1747531582356,119.08,167.1,167.04,2.0479]
[1747531582551,5.9835,167.08,167.04,8.0326]
[1747531582861,59.9,167.09,167.04,2.0479]
[1747531583354,65.883,167.09,167.05,5.9842]
[1747531583657,5.983,167.09,167.05,5.9842]
[1747531585355,5.983,167.09,167.04,8.0325]
[1747531585563,5.9833,167.08,167.04,8.0325]
[1747531586954,5.983,167.09,167.04,8.0325]
[1747531587154,5.983,167.09,167.05,5.9843]
[1747531589757,5.9833,167.08,167.04,8.0325]
[1747531591458,5.9836,167.07,167.03,7.8673]
[1747531591659,5.9836,167.07,167.03,1.8824]
[1747531592565,5.9836,167.07,167.04,5.9847]
[1747531593069,5.9834,167.08,167.04,5.9847]
[1747531593367,60.02,167.1,167.04,5.9847]
[1747531593765,5.9835,167.08,167.04,5.9847]
[1747531594873,60.02,167.1,167.0,119.08]
[1747531595168,60.02,167.1,167.0,59.16]
[1747531595968,5.984,167.07,167.02,5.9852]
[1747531596163,60.02,167.1,167.0,59.16]
[1747531596663,5.9846,167.05,167.0,5.9858]
[1747531596865,67.5846,167.05,167.0,5.9858]
[1747531597367,67.5846,167.05,167.01,5.9856]
[1747531598361,67.5846,167.05,166.99,3.9579]
[1747531598569,5.9848,167.04,166.99,1.9822]
[1747531598966,5.9848,167.04,166.99,7.9684]
[1747531599159,5.9852,167.03,166.99,5.9862]
[1747531600066,5.9848,167.04,166.99,5.9862]
[1747531600272,5.9848,167.04,167.0,5.9861]
[1747531600773,5.9848,167.04,166.98,2.0171]
[1747531600974,5.9848,167.04,166.99,5.9862]
[1747531601162,5.9848,167.04,166.98,2.0171]
[1747531601966,5.9848,167.04,167.0,5.9861]
[1747531604074,5.9851,167.03,166.99,5.9864]
[1747531606072,5.9854,167.02,166.99,5.9864]
[1747531606778,5.9854,167.02,166.98,8.0038]
[1747531607480,5.9851,167.03,166.99,5.9863]
[1747531608582,5.9851,167.03,167.0,5.9861]
[1747531608880,61.6,167.05,167.0,5.9861]
[1747531608881,5.9847,167.04,167.0,5.9861]
[1747531609482,5.9851,167.03,167.0,5.9861]
[1747531611982,5.9854,167.02,166.99,5.9863]
[1747531612173,5.9854,167.02,166.98,2.0171]
[1747531612771,5.9854,167.02,166.98,8.0036]
[1747531613284,5.9854,167.02,166.98,11.38263943]
[1747531614483,5.9854,167.02,166.99,5.9864]
[1747531615183,61.6,167.05,166.98,5.39613943]
[1747531615685,5.9848,167.04,167.01,5.9857]
[1747531616985,67.5845,167.05,167.02,5.9854]
[1747531617573,5.9847,167.04,167.01,5.9855]
[1747531619682,5.9852,167.03,167.0,5.986]
[1747531621292,5.9856,167.02,166.99,5.9864]
[1747531621488,61.6,167.05,166.98,2.0171]
[1747531621987,5.9853,167.03,166.99,5.9864]
[1747531622286,61.6,167.05,166.99,5.9864]
[1747531622591,5.9853,167.03,166.99,5.9864]
[1747531624192,5.9853,167.03,167.0,5.9861]
[1747531627586,61.56,167.07,166.98,2.0171]
[1747531627784,61.56,167.07,166.98,63.5771]
[1747531627980,61.56,167.07,166.99,4.93118843]
[1747531628179,5.9843,167.06,167.02,5.9853]
[1747531631389,5.9844,167.05,167.02,5.9853]
[1747531633991,5.9844,167.05,167.01,5.9856]
[1747531634895,5.9844,167.05,167.02,4.93217895]
[1747531635397,5.9848,167.04,167.02,4.93217895]
[1747531636395,5.985,167.03,167.02,4.93217895]
[1747531637198,61.5,167.04,166.96,67.05530988]
[1747531637383,61.5,167.04,166.96,5.55530988]
[1747531637384,61.36,167.03,166.96,5.55530988]
[1747531638476,5.9867,166.99,166.96,5.55530988]
[1747531639296,5.9867,166.99,166.96,11.54280988]
[1747531639592,5.9867,166.99,166.96,5.55530988]
[1747531640297,61.36,167.03,166.96,5.55530988]
[1747531640498,123.42,167.02,166.96,5.55530988]
[1747531640700,125.3241,167.02,166.96,5.55530988]
[1747531641092,5.9872,166.97,166.96,5.55530988]
[1747531641292,62.06,166.97,166.92,5.55530988]
[1747531642106,5.9878,166.96,166.92,5.55530988]
[1747531643408,5.9878,166.96,166.92,11.54420988]
[1747531645206,5.9878,166.96,166.92,5.9889]
[1747531645609,68.0473,166.97,166.93,5.9885]
[1747531645805,68.0473,166.97,166.91,2.0271]
[1747531646011,61.92,167.0,166.91,2.0271]
[1747531646203,67.9062,167.0,166.96,5.9873]
[1747531646796,67.9062,167.0,166.92,4.92667238]
[1747531647004,61.92,167.0,166.97,5.987]
[1747531655825,67.9063,167.0,166.97,5.987]
[1747531659128,61.52,167.01,166.97,5.987]
[1747531659322,123.08,167.01,166.97,5.987]
[1747531659930,123.08,167.01,166.96,5.9874]
[1747531660432,5.9861,167.0,166.96,5.9874]
[1747531660626,5.9861,167.0,166.97,5.987]
[1747531660827,123.08,167.01,166.97,5.987]
[1747531661034,129.0659,167.01,166.97,5.987]
[1747531661328,123.08,167.01,166.97,5.987]
[1747531661928,5.9863,167.0,166.97,5.987]
[1747531662323,123.08,167.01,166.97,5.987]